bitfinex/quotes_ETHUSD_20240722
["timestamp","ask_amount","ask_price","bid_price","bid_amount"]
[1721639863413,1.62486534,3487.7,3487.1,0.802342]
[1721639863826,1.62486534,3487.7,3487.2,2.86762]
[1721639864238,0.60086534,3487.7,3487.2,2.86762]
[1721639865249,3.46817534,3487.6,3486.9,2.86779]
[1721639865450,1.62486534,3487.6,3487.0,2.86777]
[1721639866155,2.86739,3487.5,3486.8,2.86788]
[1721639866339,2.86739,3487.5,3486.9,2.86787]
[1721639866927,1.62486534,3487.6,3486.8,0.9541604]
[1721639867152,1.62486534,3487.6,3486.9,2.86782]
[1721639867454,1.62486534,3487.6,3486.8,0.9541604]
[1721639867455,2.4726,3487.5,3487.0,2.86776]
[1721639868933,2.3459,3487.0,3486.1,2.8685]
[1721639869139,3.89193,3486.9,3486.0,3.0]
[1721639869351,3.89193,3486.9,3486.2,2.86843]
[1721639870264,5.81456534,3487.0,3486.3,2.86834]
[1721639873083,5.81456534,3487.0,3486.4,2.86828]
[1721639873452,0.60086534,3487.0,3486.4,2.86828]
[1721639874078,3.46866534,3487.0,3486.4,2.86828]
[1721639876384,0.60086534,3487.0,3486.5,2.8682]
[1721639877487,1.62486534,3487.1,3486.5,2.8682]
[1721639877687,0.60086534,3487.1,3486.5,3.441856]
[1721639877992,2.98326534,3487.3,3486.8,2.8679]
[1721639878151,2.3824,3487.3,3486.8,2.8679]
[1721639879155,2.3824,3487.3,3486.8,3.6012666]
[1721639879459,8.08086534,3487.5,3486.9,2.86787]
[1721639879663,0.60086534,3487.5,3486.9,2.86787]
[1721639879860,1.024,3487.5,3486.9,2.86787]
[1721639880259,1.62486534,3487.5,3486.9,2.86787]
[1721639880464,4.49224534,3487.5,3486.9,2.86787]
[1721639880814,5.21119,3487.4,3486.7,2.86801]
[1721639881022,5.81205534,3487.4,3486.7,2.86801]
[1721639881570,3.46841534,3487.3,3486.7,2.86801]
[1721639882674,2.86763,3487.2,3486.4,2.86828]
[1721639882929,2.86763,3487.2,3486.5,3.0]
[1721639883707,3.89171,3487.1,3486.3,2.86835]
[1721639883932,2.86787,3486.9,3486.3,3.775026]
[1721639884087,2.2763,3486.8,3486.3,2.86836]
[1721639884619,2.2763,3486.8,3486.4,2.86828]
[1721639884971,2.2763,3486.8,3486.2,2.8684]
[1721639885173,2.2763,3486.8,3486.2,0.804281]
[1721639885409,2.2763,3486.8,3486.3,2.86831]
[1721639887809,2.2763,3486.8,3486.2,3.804281]
[1721639888120,2.2763,3486.8,3486.2,6.672721]
[1721639888327,2.2763,3486.8,3486.3,2.86836]
[1721639889225,2.2763,3486.8,3486.3,3.50858776]
[1721639890077,2.2763,3486.8,3486.3,0.64022776]
[1721639890281,5.14431,3486.8,3486.1,2.86853]
[1721639890419,5.74517534,3486.8,3486.1,2.86853]
[1721639890622,2.86804,3486.7,3486.1,2.86853]
[1721639890866,2.86804,3486.7,3485.9,2.86867]
[1721639891186,2.86814,3486.6,3486.0,3.0]
[1721639892369,2.4325,3486.4,3485.5,2.86896]
[1721639892576,3.89254,3486.1,3485.6,3.0]
[1721639892877,3.89254,3486.1,3485.4,2.86907]
[1721639893190,1.62486534,3486.3,3485.5,2.86902]
[1721639893348,1.024,3486.3,3485.5,2.86902]
[1721639893896,2.86848,3486.2,3485.5,2.86902]
[1721639894858,1.024,3486.3,3485.4,2.86909]
[1721639895066,1.024,3486.3,3485.5,3.689309]
[1721639895459,3.89243,3486.3,3485.5,3.689309]
[1721639895926,3.89243,3486.3,3485.5,6.558299]
[1721639896908,3.89243,3486.3,3485.6,2.86893]
[1721639897896,2.4325,3486.4,3485.9,2.86869]
[1721639899605,2.4325,3486.4,3485.7,5.79496958]
[1721639899893,2.4325,3486.4,3485.8,2.86876]
[1721639900585,5.3008,3486.4,3485.7,1.05082786]
[1721639900798,5.3008,3486.4,3485.7,2.86884]
[1721639902104,5.3008,3486.4,3485.8,2.86876]
[1721639903901,2.4325,3486.4,3485.8,2.86876]
[1721639904267,1.024,3486.1,3485.8,2.86876]
[1721639906879,1.024,3486.3,3485.8,2.86876]
[1721639909890,1.024,3486.3,3485.9,2.86869]
[1721639913073,1.024,3486.3,3485.7,2.86886]
[1721639913397,2.3976,3486.2,3485.7,2.86886]
[1721639913776,2.3976,3486.2,3485.8,2.86876]
[1721639914001,2.3976,3486.2,3485.9,2.86867]
[1721639914403,2.3976,3486.2,3486.0,2.8686]
[1721639914603,0.60086534,3486.4,3486.0,2.8686]
[1721639914604,0.60086534,3486.4,3486.0,0.29259693]
[1721639914827,0.60086534,3486.5,3486.0,3.16115693]
[1721639915027,0.60086534,3486.5,3486.2,2.86838]
[1721639915228,0.60086534,3486.7,3486.1,2.86849]
[1721639915565,2.3376,3486.6,3486.1,2.86849]
[1721639915767,2.3376,3486.6,3486.2,0.31610869]
[1721639916186,0.60086534,3486.8,3486.2,1.39747216]
[1721639916385,10.57746534,3486.9,3486.7,2.86804]
[1721639916600,9.9766,3486.9,3486.7,2.86804]
[1721639917017,7.48,3486.9,3486.8,2.86795]
[1721639919549,0.60086534,3487.4,3487.2,2.86763]
[1721639919838,0.60086534,3487.4,3487.0,2.86778]
[1721639919839,2.4004,3487.6,3487.0,1.024]
[1721639920143,2.4004,3487.6,3487.4,2.86744]
[1721639920698,9.40529802,3488.0,3487.2,2.86758]
[1721639920699,3.01586534,3487.9,3487.5,2.86735]
[1721639921023,3.01586534,3487.9,3487.3,2.86751]
[1721639921024,2.415,3487.9,3487.6,2.86729]
[1721639922693,2.415,3487.9,3487.4,2.86745]
[1721639923228,2.415,3487.9,3487.2,2.86761]
[1721639923393,2.415,3487.9,3487.3,2.86752]
[1721639925153,2.415,3487.9,3487.4,2.86745]
[1721639925808,5.28207,3487.9,3487.2,2.86758]
[1721639926009,2.86722,3487.7,3487.0,2.86772]
[1721639926205,6.39064,3487.8,3487.1,2.86768]
[1721639926606,3.5235,3487.8,3487.2,2.86762]
[1721639926824,2.4995,3487.8,3487.2,2.86762]
[1721639928950,2.4995,3487.8,3487.3,2.86753]
[1721639929150,2.4995,3487.8,3487.2,2.86762]
[1721639929734,2.4995,3487.8,3487.3,2.86753]
[1721639931349,2.4995,3487.8,3487.4,2.86744]
[1721639931549,2.4995,3487.8,3487.5,2.86737]
[1721639932954,3.5235,3487.8,3487.2,2.86762]
[1721639933159,2.2577,3487.6,3487.0,2.86773]
[1721639933322,2.2577,3487.6,3486.9,2.8678]
[1721639933323,2.2577,3487.6,3487.1,2.8677]
[1721639933516,2.2577,3487.6,3487.2,2.86762]
[1721639933831,2.2577,3487.6,3487.2,3.441158]
[1721639934552,2.2577,3487.6,3487.3,2.86754]
[1721639935423,2.2577,3487.6,3486.8,1.024]
[1721639935735,2.2577,3487.6,3487.1,2.86765]
[1721639936653,2.2577,3487.6,3487.2,2.86762]
[1721639936844,2.2577,3487.6,3487.3,2.86753]
[1721639938979,2.2577,3487.6,3487.1,2.86765]
[1721639939141,2.2577,3487.6,3486.8,1.024]
[1721639939346,2.2577,3487.6,3487.0,2.86779]
[1721639940257,2.86738,3487.5,3486.6,2.8681]
[1721639940457,2.3921,3487.4,3486.6,2.8681]
[1721639940770,2.3921,3487.1,3486.5,2.86814]
[1721639940972,2.3921,3487.1,3486.5,3.77951]
[1721639940973,5.25981,3487.1,3486.5,3.77951]
[1721639941273,2.3921,3487.1,3486.6,2.86806]
[1721639941582,2.3921,3487.1,3486.7,2.86803]
[1721639942074,2.3921,3487.1,3486.8,2.86795]
[1721639943576,2.3921,3487.1,3486.6,3.8921]
[1721639943577,2.3921,3487.1,3486.7,2.86803]
[1721639944175,2.3921,3487.1,3486.6,2.8681]
[1721639944657,2.3921,3487.1,3486.5,0.91137]
[1721639945374,2.3921,3487.1,3486.7,2.86802]
[1721639947898,2.3921,3487.1,3486.7,2.868]
[1721639948073,2.4055,3487.4,3486.9,2.86781]
[1721639948800,2.4055,3487.4,3487.1,2.86771]
[1721639949093,7.48,3487.9,3487.1,2.86771]
[1721639949094,7.48,3487.9,3487.1,3.29812668]
[1721639949310,2.441,3487.8,3487.1,3.29812668]
[1721639949447,2.441,3487.8,3487.4,2.86746]
[1721639949653,2.441,3487.8,3487.5,2.86738]
[1721639951693,2.441,3487.8,3487.4,2.86744]
[1721639953682,2.441,3487.8,3487.2,2.86762]
[1721639954648,2.441,3487.8,3487.3,2.86754]
[1721639955566,2.441,3487.8,3487.4,2.86744]
[1721639956353,2.441,3487.8,3487.3,2.86754]
[1721639958199,3.04186534,3487.8,3487.3,2.86754]
[1721639958410,2.441,3487.8,3487.3,2.86754]
[1721639959063,3.04186534,3487.8,3487.3,2.86754]
[1721639959960,2.441,3487.8,3487.4,2.86745]
[1721639960151,3.04186534,3487.8,3487.4,2.86745]
[1721639961189,0.60086534,3487.7,3487.4,2.86745]
[1721639963211,0.60086534,3487.7,3487.2,2.86757]
[1721639963415,0.60086534,3487.6,3487.2,2.86757]
[1721639963552,0.60086534,3487.6,3486.9,5.38718881]
[1721639963553,0.60086534,3487.6,3486.9,2.86784]
[1721639963793,0.60086534,3487.6,3486.9,3.99915469]
[1721639963794,2.91796534,3487.5,3486.9,3.99915469]
[1721639964123,2.91796534,3487.5,3486.7,2.868]
[1721639964124,0.60086534,3487.4,3486.7,2.868]
[1721639964297,0.60086534,3487.3,3486.8,3.0]
[1721639965117,0.60086534,3487.3,3486.8,5.86793]
[1721639966129,0.60086534,3487.3,3486.9,2.86782]
[1721639966506,0.60086534,3487.4,3486.9,2.86782]
[1721639966732,0.60086534,3487.4,3487.1,2.86771]
[1721639966925,2.91796534,3487.5,3487.1,2.86771]
[1721639972339,2.91796534,3487.5,3487.2,2.86757]
[1721639972640,2.3171,3487.5,3487.2,2.86757]
[1721639972811,2.3171,3487.5,3487.1,2.86771]
[1721639973012,2.91796534,3487.5,3487.1,2.86771]
[1721639973513,2.91796534,3487.5,3487.2,2.86761]
[1721639973719,2.3171,3487.5,3487.3,2.86754]
[1721639974242,0.60086534,3487.6,3487.3,2.86754]
[1721639975717,0.60086534,3487.7,3487.3,2.86754]
[1721639975922,0.60086534,3487.6,3487.3,2.86754]
[1721639976175,0.60086534,3487.7,3487.3,2.86754]
[1721639976363,0.60086534,3487.7,3487.1,2.86769]
[1721639976538,0.60086534,3487.7,3487.3,2.86749]
[1721639976733,0.60086534,3487.6,3487.3,2.86749]
[1721639977521,0.60086534,3487.6,3487.4,2.86745]
[1721639977726,0.60086534,3487.6,3487.1,3.71940973]
[1721639978691,0.60086534,3487.6,3487.3,2.86754]
[1721639979544,0.60086534,3487.7,3487.4,2.86744]
[1721639979732,0.60086534,3487.6,3487.4,2.86744]
[1721639980929,0.60086534,3487.7,3487.4,2.86744]
[1721639981938,0.60086534,3487.6,3487.4,2.86744]
[1721639982369,1.05031067,3487.7,3487.4,2.86744]
[1721639982903,0.60086534,3487.6,3487.4,2.86744]
[1721639984604,0.60086534,3487.6,3487.2,2.86756]
[1721639985117,0.60086534,3487.6,3487.1,2.86768]
[1721639985404,2.94286534,3487.5,3486.9,2.86785]
[1721639985607,2.94286534,3487.5,3487.0,2.86778]
[1721639986894,2.94286534,3487.5,3487.1,2.86769]
[1721639988607,2.94286534,3487.5,3487.2,2.8676]
[1721639988817,0.60086534,3487.5,3487.4,2.86746]
[1721639989184,0.60086534,3487.6,3487.4,2.86746]
[1721639991418,0.60086534,3487.5,3487.4,2.86746]
[1721639991775,0.60086534,3487.5,3487.2,2.86762]
[1721639992091,2.4607,3487.4,3486.8,6.46951613]
[1721639992280,0.60086534,3487.3,3486.9,0.99691191]
[1721639992624,0.60086534,3487.3,3486.9,2.86786]
[1721639992917,0.60086534,3487.3,3486.9,3.48496157]
[1721639993117,0.60086534,3487.2,3486.9,3.48496157]
[1721639993477,0.60086534,3487.2,3486.9,0.61710157]
[1721639993931,0.60086534,3487.3,3486.9,0.61710157]
[1721639994096,0.60086534,3487.2,3486.8,5.86795]
[1721639994296,0.60086534,3487.2,3487.0,2.86778]
[1721639994514,3.36199802,3487.4,3487.0,2.86778]
[1721639994515,3.06156534,3487.4,3487.0,2.86778]
[1721639994724,0.60086534,3487.3,3487.0,2.86778]
[1721639995511,0.60086534,3487.3,3487.1,2.86768]
[1721639995916,0.60086534,3487.3,3487.2,3.441176]
[1721639996125,0.60086534,3487.5,3487.3,2.86748]
[1721639996438,0.60086534,3487.4,3487.3,2.86748]
[1721639996650,10.25694533,3487.7,3487.4,2.86746]
[1721639996651,0.60086534,3487.5,3487.4,2.86746]
[1721639996798,0.60086534,3487.6,3487.5,2.86738]
[1721639997808,1.35074335,3487.7,3487.5,2.86738]
[1721640000401,0.60226601,3487.6,3487.5,2.86738]
[1721640001702,0.60226601,3487.6,3487.5,5.73476]
[1721640002049,0.60226601,3487.6,3487.5,6.56590189]
[1721640002263,0.60226601,3487.7,3487.6,2.8673]
[1721640002549,3.32179802,3487.9,3487.6,2.8673]
[1721640002550,0.60226601,3487.8,3487.7,5.73442]
[1721640002699,0.90129802,3488.1,3487.8,2.86713]
[1721640002900,0.60214804,3488.0,3487.8,2.86713]
[1721640003100,0.60214804,3488.1,3488.0,2.86697]
[1721640004440,0.60214804,3488.1,3487.8,2.86707]
[1721640004848,0.60214804,3488.1,3487.9,2.86704]
[1721640005348,0.60214804,3488.1,3487.7,2.8672]
[1721640005642,0.60214804,3488.1,3488.0,2.86697]
[1721640005826,8.08214804,3488.2,3488.0,2.86697]
[1721640006341,0.60214804,3488.2,3488.0,2.86697]
[1721640007368,0.60214804,3488.1,3487.8,2.86707]
[1721640007561,0.60214804,3488.1,3487.9,2.86699]
[1721640008073,0.60214804,3488.1,3487.7,0.47223419]
[1721640008221,0.60214804,3488.2,3487.8,2.86713]
[1721640009247,0.60214804,3488.2,3487.9,2.86704]
[1721640009650,0.60214804,3488.2,3487.8,2.86711]
[1721640010187,0.60214804,3488.2,3487.7,3.33944419]
[1721640010473,0.60214804,3488.2,3487.8,3.28414861]
[1721640010630,0.60214804,3488.2,3487.9,2.86699]
[1721640011031,0.60214804,3488.2,3488.0,2.86696]
[1721640012434,0.60214804,3488.2,3487.8,3.28414861]
[1721640015661,1.0515147,3488.2,3487.8,3.28414861]
[1721640015857,1.0515147,3488.2,3487.9,2.86705]
[1721640017355,0.44936666,3488.2,3487.9,2.86705]
[1721640020810,0.44936666,3488.2,3487.8,0.41705861]
[1721640020966,0.44936666,3488.2,3487.7,5.73436]
[1721640021275,0.44936666,3488.2,3487.8,2.86711]
[1721640021472,2.86696,3488.1,3487.4,2.86746]
[1721640021674,5.31841,3488.0,3487.5,3.0]
[1721640021992,5.92055804,3488.0,3487.2,5.86763]
[1721640022209,5.92055804,3488.0,3487.3,0.83866943]
[1721640022580,4.07754804,3488.0,3487.3,0.83866943]
[1721640022933,4.07754804,3488.0,3487.2,5.86763]
[1721640023215,4.07754804,3488.0,3487.0,4.36306758]
[1721640023509,5.12028,3487.8,3487.1,2.86771]
[1721640023882,2.2531,3487.8,3487.2,2.86756]
[1721640024380,2.2531,3487.8,3487.4,2.86744]
[1721640025575,2.2531,3487.8,3487.2,2.3699]
[1721640025776,2.2531,3487.8,3487.3,0.33939]
[1721640025979,2.2531,3487.8,3487.5,2.86736]
[1721640026197,2.2531,3487.8,3487.6,2.86729]
[1721640028124,2.2531,3487.8,3487.4,2.8674]
[1721640028418,2.2531,3487.8,3487.2,2.3699]
[1721640028419,2.2531,3487.8,3487.2,2.8676]
[1721640028709,2.2531,3487.8,3487.3,2.86747]
[1721640029069,2.2531,3487.8,3487.4,2.86746]
[1721640032369,5.12024,3487.8,3487.2,2.8676]
[1721640032574,2.2531,3487.8,3487.3,2.86754]
[1721640032803,2.2531,3487.8,3487.0,1.49529317]
[1721640032804,2.2531,3487.8,3487.0,2.86776]
[1721640033023,5.12027,3487.8,3487.1,3.0]
[1721640033217,1.024,3487.5,3486.8,5.86794]
[1721640033479,0.60214804,3487.4,3486.9,2.86786]
[1721640033677,0.60214804,3487.4,3487.0,2.86777]
[1721640034777,0.60214804,3487.5,3487.0,2.86777]
[1721640035019,2.8676,3487.3,3486.8,3.0]
[1721640035215,2.8676,3487.3,3486.5,2.86817]
[1721640035216,5.30204,3487.2,3486.5,2.86817]
[1721640035423,5.30204,3487.2,3486.5,4.30220875]
[1721640036487,5.30204,3487.2,3486.2,1.49558198]
[1721640036488,2.3265,3486.8,3486.2,1.49558198]
[1721640036689,1.024,3486.7,3486.1,2.86847]
[1721640036997,1.62614804,3486.7,3486.1,2.86847]
[1721640037307,1.024,3486.7,3486.1,2.86847]
[1721640037516,3.89205,3486.7,3486.1,2.86847]
[1721640037686,2.3265,3486.4,3486.0,2.86861]
[1721640040731,2.3265,3486.4,3485.7,1.024]
[1721640040933,2.3265,3486.4,3485.5,3.0]
[1721640040934,2.3265,3486.4,3486.3,2.86837]
[1721640041747,3.46998804,3487.0,3486.4,2.86828]
[1721640041748,2.384,3486.8,3486.4,2.86828]
[1721640044312,2.384,3486.8,3486.3,2.86836]
[1721640045807,2.384,3486.8,3486.6,2.86806]
[1721640046127,2.3518,3487.1,3486.6,2.86806]
[1721640046500,2.3518,3487.1,3486.4,5.7365]
[1721640046806,2.3518,3487.1,3486.5,2.8682]
[1721640047114,5.21951,3487.1,3486.5,2.8682]
[1721640050339,5.21951,3487.1,3486.7,2.86802]
[1721640050340,2.3518,3487.1,3486.7,2.86802]
[1721640052058,2.3518,3487.1,3486.4,2.86828]
[1721640052238,7.48,3487.3,3487.0,2.86774]
[1721640052460,2.4746,3487.4,3487.2,2.86763]
[1721640053252,2.4746,3487.4,3487.0,2.86774]
[1721640054050,2.4746,3487.4,3487.1,2.86771]
[1721640054817,2.4746,3487.4,3487.2,2.86762]
[1721640056348,2.4746,3487.4,3487.3,2.86754]
[1721640056548,2.4746,3487.4,3487.1,2.86764]
[1721640057147,2.4746,3487.4,3487.2,2.86761]
[1721640057838,2.4746,3487.4,3487.3,2.86754]
[1721640058046,2.4087,3487.7,3487.4,2.86744]
[1721640058725,2.4087,3487.7,3487.5,2.86737]
[1721640058928,7.48,3487.8,3487.6,2.8673]
[1721640059982,7.48,3487.8,3487.7,2.86721]
[1721640060193,0.44946634,3487.9,3487.7,2.86721]
[1721640060894,2.4087,3488.0,3487.8,2.86713]
[1721640061886,2.85812825,3488.3,3488.1,2.86688]
[1721640064690,2.85812825,3488.3,3488.2,2.8668]
[1721640066189,0.44942825,3488.3,3488.2,2.8668]
[1721640066440,2.4087,3488.6,3488.1,2.86688]
[1721640066581,2.4087,3488.6,3488.4,2.86663]
[1721640066990,2.4087,3488.6,3487.9,1.023]
[1721640067231,0.44936329,3488.7,3487.9,1.023]
[1721640067232,0.44936329,3488.7,3488.5,2.8665]
[1721640067533,9.7422,3488.9,3488.5,2.8665]
[1721640070219,2.2622,3488.9,3488.5,1.59632]
[1721640070540,0.44933698,3489.1,3488.7,2.86637]
[1721640070541,2.4144,3489.1,3488.7,2.86637]
[1721640071457,2.4144,3489.1,3488.5,2.86653]
[1721640071615,2.4144,3489.1,3488.6,2.86646]
[1721640072348,3.88924,3488.9,3488.1,2.86683]
[1721640072518,1.023,3488.5,3488.1,2.86683]
[1721640073045,2.4419,3488.4,3487.9,2.86703]
[1721640073203,1.023,3488.3,3487.9,2.86703]
[1721640073913,2.4419,3488.4,3487.8,2.86708]
[1721640074148,2.4419,3488.4,3487.7,2.8672]
[1721640074312,1.023,3488.3,3487.7,3.45392]
[1721640075419,1.023,3488.3,3487.9,2.86699]
[1721640075645,2.4419,3488.4,3487.9,2.86699]
[1721640076529,2.86675,3488.3,3487.7,2.8672]
[1721640076709,3.88975,3488.3,3487.7,2.8672]
[1721640077040,1.023,3488.3,3487.7,2.8672]
[1721640077929,5.30854,3488.4,3487.7,2.8672]
[1721640078132,5.30854,3488.4,3487.8,2.86713]
[1721640078331,2.86678,3488.3,3487.6,2.86726]
[1721640078649,1.023,3488.3,3487.6,2.86726]
[1721640079262,2.86681,3488.2,3487.6,2.86726]
[1721640079615,5.19539,3488.1,3487.5,3.0]
[1721640079827,5.19539,3488.1,3487.4,2.8674]
[1721640080050,5.19539,3488.1,3487.4,3.55644]
[1721640081040,2.86697,3488.0,3487.4,3.55644]
[1721640081222,2.86697,3488.0,3487.4,2.8674]
[1721640081623,2.3285,3488.1,3487.4,2.8674]
[1721640081830,2.3285,3488.1,3487.5,2.86737]
[1721640082426,2.3285,3488.1,3487.6,2.86728]
[1721640082625,2.3285,3488.1,3487.7,2.8672]
[1721640082849,2.3285,3488.1,3487.5,1.023]
[1721640082850,2.3285,3488.1,3487.8,2.86708]
[1721640083532,2.3285,3488.1,3487.6,2.86724]
[1721640084949,2.3285,3488.1,3487.7,2.86715]
[1721640085357,2.3285,3488.1,3487.8,2.86712]
[1721640085514,2.86656,3488.5,3487.8,0.675736]
[1721640085723,2.2725,3488.4,3487.8,0.675736]
[1721640086643,2.2725,3488.4,3487.9,2.86697]
[1721640088559,5.13914,3488.4,3487.8,3.542856]
[1721640088721,5.13914,3488.4,3487.9,2.86704]
[1721640088921,2.2725,3488.4,3488.0,2.86696]
[1721640090873,2.2725,3488.4,3487.9,2.86705]
[1721640091844,5.13916,3488.4,3487.8,2.86708]
[1721640092577,5.13916,3488.4,3487.9,2.86704]
[1721640092578,2.2725,3488.4,3487.9,2.86704]
[1721640092787,2.2725,3488.4,3487.9,3.440452]
[1721640093781,2.86674,3488.3,3487.9,0.573412]
[1721640093997,2.86674,3488.3,3487.7,2.86716]
[1721640095503,5.13915,3488.4,3487.8,2.86713]
[1721640095891,5.13915,3488.4,3487.7,2.86719]
[1721640095892,2.86673,3488.3,3487.7,2.86719]
[1721640097217,2.4368,3488.0,3487.5,3.89036]
[1721640097512,2.4368,3488.0,3487.6,0.67579]
[1721640099167,5.30377,3488.0,3487.6,0.67579]
[1721640099369,5.30377,3488.0,3487.4,3.89046]
[1721640099573,2.4368,3488.0,3487.5,2.86738]
[1721640100006,2.4368,3488.0,3487.6,2.86729]
[1721640100210,2.4368,3488.0,3487.4,3.89043]
[1721640100410,2.4368,3488.0,3487.6,2.86725]
[1721640100609,2.4368,3488.0,3487.7,3.256225]
[1721640102091,2.4368,3488.0,3487.7,0.389025]
[1721640103805,2.4368,3488.0,3487.7,3.256235]
[1721640104006,2.4368,3488.0,3487.7,0.389025]
[1721640104380,2.4368,3488.0,3487.5,2.8673]
[1721640106483,5.30378,3488.0,3487.4,2.86744]
[1721640106681,2.86706,3487.9,3487.3,1.49517809]
[1721640106894,5.30378,3488.0,3487.3,5.86751]
[1721640107097,5.30378,3488.0,3487.3,7.59903931]
[1721640107323,2.86706,3487.9,3487.3,7.59903931]
[1721640109020,2.86706,3487.9,3487.3,4.73152931]
[1721640109506,2.86715,3487.8,3487.3,4.73152931]
[1721640109903,2.86691,3488.1,3487.1,1.49521783]
[1721640109904,3.8903,3487.6,3487.1,1.49521783]
[1721640110116,3.4337,3487.4,3486.8,1.49521783]
[1721640110320,2.86763,3487.2,3486.5,4.3636108]
[1721640110532,2.86763,3487.2,3486.6,1.11675058]
[1721640110820,6.8998012,3487.4,3486.6,1.11675058]
[1721640110821,3.0093412,3487.4,3486.6,3.98487058]
[1721640111185,2.8676,3487.3,3486.6,3.98487058]
[1721640111380,2.86763,3487.2,3486.6,3.98487058]
[1721640111613,6.8998012,3487.4,3486.6,3.98487058]
[1721640111614,5.15558,3487.1,3486.6,1.11675058]
[1721640111915,5.15558,3487.1,3486.5,2.86819]
[1721640114980,2.2878,3487.1,3486.7,2.86801]
[1721640115180,2.4206,3487.3,3486.8,2.86794]
[1721640115823,5.28816,3487.3,3486.6,2.86807]
[1721640116183,5.28816,3487.3,3486.6,3.89107]
[1721640117529,2.86764,3487.2,3486.6,3.89107]
[1721640117691,2.86764,3487.2,3486.6,4.24372365]
[1721640118915,2.86771,3487.1,3486.6,1.37565365]
[1721640119118,2.86771,3487.1,3486.6,0.35265365]
[1721640120727,2.86771,3487.1,3486.5,2.8682]
[1721640121313,2.86771,3487.1,3486.4,2.86824]
[1721640121630,2.86771,3487.1,3486.4,3.89124]
[1721640121831,2.2518,3486.9,3486.4,3.89124]
[1721640122193,5.11969,3486.9,3486.2,6.27275]
[1721640122528,5.11969,3486.9,3486.3,6.41837]
[1721640123732,2.86795,3486.8,3486.3,0.55]
[1721640123928,1.023,3486.8,3485.9,2.86864]
[1721640124096,2.4107,3486.4,3486.0,0.55]
[1721640124710,2.4107,3486.4,3485.9,2.86864]
[1721640124911,2.4107,3486.4,3486.0,0.676049]
[1721640125110,5.27899,3486.4,3485.7,2.86885]
[1721640125309,5.27899,3486.4,3485.8,0.55]
[1721640125524,2.4107,3486.4,3485.8,3.41874]
[1721640125732,5.27899,3486.4,3485.8,0.55]
[1721640127246,1.940012,3486.4,3485.4,3.0]
[1721640127553,1.023,3485.6,3484.8,2.3898]
[1721640127733,1.023,3485.6,3484.7,2.86962]
[1721640127734,2.86911,3485.4,3484.7,2.86962]
[1721640127929,2.86911,3485.4,3484.8,3.784815]
[1721640128260,5.13171,3485.4,3484.8,0.915225]
[1721640128459,5.13171,3485.4,3484.8,3.784805]
[1721640128821,2.2626,3485.4,3484.9,2.86951]
[1721640129035,2.2626,3486.0,3485.0,2.86943]
[1721640129267,2.2626,3486.0,3485.2,2.8692]
[1721640129765,2.86876,3485.9,3485.2,2.8692]
[1721640129938,2.86878,3485.8,3485.2,2.8692]
[1721640130364,2.86871,3485.9,3485.2,2.8692]
[1721640130525,2.86879,3485.8,3485.2,2.8692]
[1721640132132,2.8687,3485.9,3485.3,2.86918]
[1721640132954,2.2626,3486.0,3485.4,2.86911]
[1721640133176,2.2626,3486.0,3485.3,3.48088855]
[1721640133687,2.2626,3486.0,3485.4,2.86904]
[1721640134046,2.2626,3486.0,3485.5,2.86902]
[1721640134248,2.2626,3486.0,3485.6,2.86893]
[1721640134596,2.2873,3486.6,3485.6,0.63497286]
[1721640134764,2.2873,3486.6,3486.0,2.86854]
[1721640135347,2.2873,3486.6,3486.1,2.86852]
[1721640135661,2.2873,3486.6,3485.9,2.86864]
[1721640135850,2.2873,3486.6,3486.1,2.86848]
[1721640136672,2.2873,3486.6,3486.2,2.86844]
[1721640136983,7.48,3486.8,3485.7,5.91711]
[1721640137286,7.48,3486.8,3486.4,2.86827]
[1721640140050,2.4311,3486.9,3486.4,2.86827]
[1721640140249,2.4311,3486.9,3486.2,2.86845]
[1721640140588,5.29897,3486.9,3486.2,2.86845]
[1721640141154,5.29897,3486.9,3486.3,2.86834]
[1721640142584,2.86806,3486.7,3486.1,2.86853]
[1721640142889,2.86796,3486.8,3485.9,2.86865]
[1721640143088,2.86821,3486.5,3485.9,2.86865]
[1721640143479,2.86828,3486.4,3485.8,2.86877]
[1721640143799,5.33115,3486.7,3485.9,2.86869]
[1721640144089,2.86822,3486.5,3485.9,2.86869]
[1721640144316,5.33115,3486.7,3486.0,2.86856]
[1721640144489,2.4631,3486.7,3486.2,2.86839]
[1721640144658,2.4631,3486.7,3486.3,2.86835]
[1721640145761,2.4631,3486.7,3486.1,2.86852]
[1721640146504,2.4631,3486.7,3485.9,3.50594029]
[1721640146690,2.8682,3486.5,3485.9,2.86869]
[1721640147075,5.1874,3486.4,3485.7,2.86885]
[1721640147264,5.1874,3486.4,3485.6,0.63497286]
[1721640147601,2.86854,3486.1,3485.4,2.8691]
[1721640148196,2.86877,3485.9,3485.1,2.8693]
[1721640148398,2.4252,3486.0,3484.6,2.2749]
[1721640148399,2.86895,3485.6,3484.9,2.86945]
[1721640148964,2.86895,3485.6,3485.0,2.86943]
[1721640152781,2.86879,3485.8,3485.1,2.86934]
[1721640153178,2.86886,3485.7,3485.1,2.86934]
[1721640153602,2.86895,3485.6,3484.9,2.86952]
[1721640153806,2.86912,3485.4,3484.8,2.8696]
[1721640154011,2.3582,3485.3,3484.5,5.86982]
[1721640154329,2.3582,3485.3,3484.5,6.977941]
[1721640154905,2.3582,3485.3,3484.9,2.86951]
[1721640155067,2.3582,3485.3,3484.7,2.86963]
[1721640155623,2.3582,3485.3,3484.8,2.86959]
[1721640156709,2.3032,3485.7,3484.5,4.108121]
[1721640156905,5.17206,3485.7,3485.0,2.86936]